fUSD/lending_fUSD_20240217
["ID","MTS","AMOUNT","RATE_DAILY","PERIOD"]
[314343453,1708206636211,-763.98,0.00036549,2]
[314343454,1708206636221,-250.0,0.00036554,111]
[314343455,1708206636230,-150.0,0.00036555,2]
[314343456,1708206636240,-152.0,0.00036616,7]
[314343457,1708206636250,-250.0,0.0003662,2]
[314343458,1708206636259,-800.0,0.00036639,2]
[314343459,1708206636269,-887.71,0.00036648,2]
[314343460,1708206636278,-1919.65,0.00036653,2]
[314343462,1708206636287,-182.38,0.00036667,2]
[314343464,1708206636296,-290.31,0.0003671,2]
[314343466,1708206636306,-250.0,0.00036712,2]
[314343467,1708206636315,-1000.0,0.00036717,2]
[314343468,1708206636325,-23900.0,0.00036718,2]
[314343469,1708206636334,-2356.88,0.00036916,2]
[314343470,1708206636343,-834.96,0.00036965,2]
[314343471,1708206636353,-2000.0,0.00037,2]
[314343472,1708206636362,-194.13,0.00037003,2]
[314343473,1708206636372,-12125.0,0.000371,2]
[314343474,1708206636381,-167.83,0.00037108,2]
[314343475,1708206636390,-153.37,0.00037114,2]
[314343476,1708206636400,-1466.57,0.00037116,2]
[314343477,1708206636409,-200.0,0.00037123,2]
[314343478,1708206636419,-152.0,0.00037164,7]
[314343479,1708206636428,-194.13,0.00037198,2]
[314343480,1708206636438,-194.13,0.00037393,2]
[314343481,1708206636447,-10000.0,0.000375,20]
[314343482,1708206636457,-153.37,0.00037501,2]
[314343483,1708206636466,-210.0,0.00037546,2]
[314343484,1708206636475,-357.65,0.00037566,2]
[314343485,1708206636485,-194.13,0.00037587,2]
[314343486,1708206636495,-210.0,0.000376,2]
[314343487,1708206636504,-152.0,0.00037712,7]
[314343488,1708206636514,-194.13,0.00037782,2]
[314343489,1708206636523,-405.33,0.00037857,2]
[314343490,1708206636533,-153.37,0.00037888,2]
[314343491,1708206636542,-150.0,0.00037899,2]
[314343492,1708206636552,-300.0,0.00037899,7]
[314343493,1708206636562,-450.0,0.00037899,12]
[314343494,1708206636571,-286.77201145,0.00037899,17]
[314343495,1708206636580,-155.0,0.000379,2]
[314343496,1708206636589,-354.59,0.000379,2]
[314343497,1708206636599,-763.98,0.00037901,2]
[314343498,1708206636608,-194.13,0.00037977,2]
[314343499,1708206636618,-5457.03528081,0.00038,2]
[314343500,1708206636627,-405.33,0.00038057,2]
[314343501,1708206636637,-151.021833,0.00038148,37]
[314343502,1708206636646,-194.13,0.00038172,2]
[314343503,1708206636656,-151.021833,0.00038198,38]
[314343504,1708206636666,-313.0,0.000382,12]
[314343505,1708206636675,-151.021833,0.00038248,37]
[314343506,1708206636684,-405.33,0.00038256,2]
[314343507,1708206636693,-152.0,0.0003826,7]
[314343508,1708206636703,-153.37,0.00038274,2]
[314343509,1708206636713,-887.71,0.00038292,2]
[314343510,1708206636722,-151.021833,0.00038298,38]
[314343511,1708206636731,-151.021833,0.00038348,37]
[314343512,1708206636741,-200.43839479,0.00038356,2]
[314343513,1708206636750,-201.59,0.00038356,2]
[314343514,1708206636760,-152.61,0.00038356,2]
[314343515,1708206636769,-320.51,0.00038356,15]
[314343516,1708206636779,-194.13,0.00038367,2]
[314343517,1708206636790,-151.021833,0.00038398,38]
[314343518,1708206636800,-151.021833,0.00038448,38]
[314343519,1708206636810,-151.021833,0.00038448,37]
[314343520,1708206636819,-405.33,0.00038455,2]
[314343521,1708206636837,-151.021833,0.00038498,39]
[314343522,1708206636853,-151.021833,0.00038548,38]
[314343523,1708206636869,-165.69,0.00038548,2]
[314343524,1708206636882,-194.13,0.00038561,2]
[314343525,1708206636896,-200.0,0.00038589,5]
[314343526,1708206636910,-200.0,0.00038589,20]
[314343527,1708206636926,-200.0,0.00038589,20]
[314343528,1708206636940,-151.021833,0.00038598,39]
[314343529,1708206636955,-330.31,0.0003863,2]
[314343530,1708206636967,-152.54,0.0003863,2]
[314343531,1708206636979,-150.0,0.0003863,2]
[314343532,1708206636994,-150.0,0.0003863,2]
[314343533,1708206637007,-309.96,0.0003863,2]
[314343534,1708206637020,-422.68,0.0003863,2]
[314343535,1708206637034,-343.57,0.0003863,2]
[314343536,1708206637047,-422.68,0.0003863,2]
[314343537,1708206637058,-150.0,0.0003863,2]
[314343538,1708206637072,-419.0,0.0003863,2]
[314343539,1708206637085,-150.0,0.0003863,2]
[314343540,1708206637100,-343.57,0.0003863,2]
[314343541,1708206637112,-150.0,0.0003863,2]
[314343542,1708206637124,-150.0,0.0003863,2]
[314343545,1708206637138,-419.0,0.0003863,2]
[314343546,1708206637151,-422.68,0.0003863,2]
[314343547,1708206637164,-150.0,0.0003863,2]
[314343549,1708206637178,-343.57,0.0003863,2]
[314343551,1708206637192,-412.14,0.0003863,2]
[314343552,1708206637205,-412.14,0.0003863,2]
[314343553,1708206637216,-422.68,0.0003863,2]
[314343554,1708206637226,-343.57,0.0003863,2]
[314343555,1708206637237,-150.0,0.0003863,2]
[314343556,1708206637251,-300.0,0.0003863,2]
[314343557,1708206637263,-412.14,0.0003863,2]
[314343558,1708206637277,-179.04,0.0003863,2]
[314343559,1708206637289,-412.14,0.0003863,2]
[314343560,1708206637299,-300.0,0.0003863,2]
[314343561,1708206637309,-343.57,0.0003863,2]
[314343562,1708206637321,-412.14,0.0003863,2]
[314343563,1708206637333,-348.82,0.0003863,2]
[314343564,1708206637344,-444.08,0.0003863,2]
[314343565,1708206637359,-412.14,0.0003863,2]
[314343566,1708206637371,-412.14,0.0003863,2]
[314343567,1708206637382,-412.14,0.0003863,2]
[314343568,1708206637393,-388.44,0.0003863,2]
[314343569,1708206637405,-412.14,0.0003863,2]
[314343570,1708206637416,-412.14,0.0003863,2]
[314343571,1708206637428,-412.14,0.0003863,2]
[314343572,1708206637440,-412.14,0.0003863,2]
[314343573,1708206637451,-412.14,0.0003863,2]
[314343574,1708206637463,-838.0,0.0003863,2]
[314343575,1708206637476,-412.14,0.0003863,2]
[314343576,1708206637488,-846.37,0.0003863,2]
[314343577,1708206637499,-151.021833,0.00038648,38]
[314343578,1708206637511,-405.33,0.00038655,2]
[314343579,1708206637522,-153.37,0.00038661,2]
[314343580,1708206637534,-151.0,0.00038688,7]
[314343581,1708206637545,-151.021833,0.00038698,39]
[314343582,1708206637557,-1000.0,0.000387,2]
[314343583,1708206637569,-407.15455263,0.000387,9]
[314343584,1708206637581,-1111.83291527,0.000387,2]
[314343585,1708206637592,-1552.61565904,0.00038747,2]
[314343586,1708206637604,-151.021833,0.00038748,38]
[314343587,1708206637616,-194.13,0.00038756,2]
[314343588,1708206637627,-151.021833,0.00038758,38]
[314343589,1708206637639,-151.021833,0.00038768,29]
[314343590,1708206637651,-151.021833,0.00038778,30]
[314343591,1708206637662,-151.021833,0.00038788,31]
[314343592,1708206637674,-153.12123542,0.00038797,2]
[314343593,1708206637686,-536.47042932,0.00038797,2]
[314343594,1708206637698,-378.1740536,0.00038797,2]
[314343595,1708206637710,-151.021833,0.00038798,39]
[314343596,1708206637722,-323.56665276,0.00038799,4]
[314343597,1708206637734,-1019.13,0.00038799,2]
[314343598,1708206637746,-5000.0,0.000388,3]
[314343600,1708206637757,-500.0,0.000388,2]
[314343602,1708206637768,-30651.90802866,0.000388,2]
[314343605,1708206637794,-531.52383029,0.000388,2]
[314343608,1708206637809,-2232.90621236,0.000388,2]
[314343611,1708206637835,-963.54444357,0.000388,2]
[314343613,1708206637849,-369.99595065,0.000388,2]
[314343617,1708206637873,-1857.80356833,0.000388,2]
[314343619,1708206637887,-824.46006217,0.000388,2]
[314343623,1708206637902,-5650.24126637,0.000388,2]
[314343626,1708206637916,-9070.62001971,0.000388,2]
[314343628,1708206637931,-431.72341497,0.000388,2]
[314343631,1708206637951,-1553.06,0.000388,2]
[314343634,1708206637970,-25965.87670146,0.000388,2]
[314343639,1708206638010,-110782.19473076,0.000388,2]
[314343642,1708206638034,-1409.7540204,0.000388,2]
[314343684,1708206638483,-10966.12009428,0.000388,2]
[314343687,1708206638499,-18317.21842774,0.000388,2]
[314343693,1708206638556,-2794.46840009,0.000388,2]
[314343695,1708206638571,-1401.539139,0.000388,2]
[314343698,1708206638586,-19225.04168919,0.000388,2]
[314343700,1708206638598,-25865.3726,0.000388,2]
[314343702,1708206638611,-79272.66948799,0.000388,2]
[314343844,1708206640042,-1340.46156727,0.000388,2]
[314343847,1708206640054,-666.0,0.000388,2]
[314343849,1708206640067,-7756.12444474,0.000388,2]
[314343851,1708206640076,-188.1131995,0.000388,2]
[314343853,1708206640085,-162.88715172,0.000388,2]
[314343855,1708206640095,-570.3301861,0.000388,2]
[314343857,1708206640104,-4493.37082339,0.000388,2]
[314343859,1708206640113,-287.58027514,0.000388,2]
[314343861,1708206640122,-155.11808737,0.000388,30]
[314343863,1708206640131,-506.02132514,0.000388,2]
[314343865,1708206640140,-1020.53378288,0.000388,2]
[314343867,1708206640150,-152.0,0.00038808,7]
[314343869,1708206640159,-200.0,0.00038847,5]
[314343871,1708206640168,-151.021833,0.00038848,38]
[314343873,1708206640177,-405.33,0.00038854,2]
[314343875,1708206640186,-407.15455257,0.00038854,9]
[314343877,1708206640195,-7576.76622845,0.00038887,4]
[314343879,1708206640208,-653.36421594,0.00038887,4]
[314343884,1708206640245,-345.90729815,0.00038887,4]
[314343887,1708206640257,-5209.07446247,0.00038887,4]
[314343957,1708206640908,-281.46427667,0.00037801,2]
[314343959,1708206640920,-2.07162333,0.00037801,2]
[314343961,1708206640930,-1557.88431658,0.00038887,4]
[314343964,1708206640941,-1048.77125583,0.00038887,4]
[314343966,1708206640953,-2739.21282675,0.00038887,4]
[314344119,1708206642359,-106225.797,0.00037801,2]
[314344121,1708206642368,-150.0,0.00038876,2]
[314344123,1708206642378,-154816.89898583,0.00038887,4]
[314344125,1708206642387,-361925.79068679,0.0003889,4]
[314344130,1708206642420,-744.5,0.0003889,4]
[314344132,1708206642431,-2595.85,0.0003889,4]
[314344139,1708206642485,-21054.31705623,0.0003889,4]
[314344141,1708206642497,-2117.83680198,0.0003889,4]
[314344148,1708206642550,-545.74999965,0.0003889,4]
[314344183,1708206642875,-45885.65443035,0.0003889,4]
[314344185,1708206642885,-5276.1151983,0.00038897,2]
[314344187,1708206642894,-342932.69274237,0.00038897,2]
[314344189,1708206642905,-28901.60673083,0.00038897,2]
[314344191,1708206642914,-10522.8026479,0.00038897,2]
[314344193,1708206642923,-151.021833,0.00038898,39]
[314344195,1708206642932,-478395.9175387,0.00038899,2]
[314344199,1708206642951,-24269.83744866,0.00038899,2]
[314344201,1708206642962,-11955.20439353,0.00038899,2]
[314344203,1708206642973,-1321.86465,0.00038899,2]
[314344205,1708206642984,-13833.184442,0.00038899,2]
[314344457,1708206645419,-2530.75117674,0.00038899,2]
[314344459,1708206645431,-288.93399182,0.00038899,2]
[314344472,1708206645542,-40650.58505338,0.00038899,2]
[314344480,1708206647023,-62451.23998978,0.00038899,2]
[314344481,1708206647036,-7454.72915987,0.00038899,2]
[314344482,1708206647137,-54349.43708013,0.00038899,2]
[314344487,1708206880436,-155.0,0.00022999,2]
[314344488,1708206880458,-99845.0,0.00023,2]
[314344489,1708206932087,-155.40162852,0.00022999,2]
[314344490,1708206932107,-99844.59837148,0.00023,2]
[314344491,1708206981368,274.0,0.00022542,2]
[314344492,1708207135677,-169.79838061,0.000229,2]
[314344493,1708207135696,-3830.20161939,0.00022999,2]
[314344494,1708207136710,-353.7972171,0.00022999,2]
[314344495,1708207136731,-3646.2027829,0.00023,2]
[314344496,1708207137931,-4000.0,0.00023,2]
[314344497,1708207139012,-4000.0,0.00023,2]
[314344498,1708207139945,-4000.0,0.00023,2]
[314344499,1708207140804,-4000.0,0.00023,2]
[314344500,1708207141692,-4000.0,0.00023,2]
[314344501,1708207142758,-4000.0,0.00023,2]
[314344502,1708207143513,-4000.0,0.00023,2]
[314344503,1708207144341,-4000.0,0.00023,2]
[314344504,1708207145577,-4000.0,0.00023,2]
[314344505,1708207146559,-4000.0,0.00023,2]
[314344506,1708207147683,-4000.0,0.00023,2]
[314344507,1708207149174,-4000.0,0.00023,2]
[314344508,1708207161442,177.43,0.00022,2]
[314344509,1708207162737,353.91,0.00022548,2]
[314344510,1708207195769,-2324.44379805,0.00022999,2]
[314344511,1708207195794,-626.9478939,0.00022999,2]
[314344512,1708207225971,-2324.44379805,0.00022999,2]
[314344513,1708207225995,-626.9478939,0.00022999,2]
[314344514,1708207235556,-955.25456058,0.00023,2]
[314344515,1708207236829,-955.25456058,0.00023,2]
[314344516,1708207237486,-955.25456058,0.00023,2]
[314344517,1708207238108,-955.25456058,0.00023,2]
[314344518,1708207238627,-955.25456058,0.00023,2]
[314344519,1708207243853,-955.25456058,0.00022999,2]
[314344520,1708207244679,-255.7806582,0.00022999,2]
[314344521,1708207244703,-699.47390238,0.00023,2]
[314344550,1708207831813,-1211.03521878,0.00022899,2]
[314344551,1708207831823,-2634.5852,0.000229,2]
[314344552,1708207831833,-364.76382382,0.00022992,2]
[314344553,1708207831843,-329519.43778599,0.00023,2]
[314344554,1708207831855,-386197.38448855,0.00023,2]
[314344555,1708207831868,-472.04,0.00023,2]
[314344565,1708207837593,-1029.27,0.00023,2]
[314344566,1708207837605,-253.60065866,0.00023,2]
[314344567,1708207837652,-795007.7749221,0.00023,2]
[314344568,1708207837662,-302.53924288,0.000242,2]
[314344569,1708207837671,-400.73816197,0.000245,2]
[314344570,1708207837681,-176.28392625,0.000246,2]
[314344571,1708207837691,-750.0,0.00025,3]
[314344572,1708207837700,-205.0,0.00025013,2]
[314344573,1708207837710,-499.99,0.00026013,2]
[314344574,1708207837719,-400.73816194,0.00026683,3]
[314344575,1708207837729,-800.0,0.00027,3]
[314344576,1708207837739,-155.0,0.00027397,2]
[314344577,1708207837748,-879.4,0.00027586,2]
[314344578,1708207837758,-302.53924288,0.00027625,2]
[314344579,1708207837768,-169.79838058,0.00027866,2]
[314344580,1708207837778,-205.0,0.00028512,7]
[314344581,1708207837787,-279.73,0.00028529,2]
[314344582,1708207837797,-200.0,0.00028566,2]
[314344583,1708207837806,-2705.0,0.00028604,2]
[314344584,1708207837816,-500.0,0.00028644,2]
[314344585,1708207837825,-2000.0,0.00028686,2]
[314344586,1708207837834,-155.0,0.00028767,2]
[314344587,1708207837843,-400.73816194,0.00028866,4]
[314344588,1708207837853,-850.0,0.00029,3]
[314344589,1708207837862,-154.82,0.00029128,2]
[314344590,1708207837872,-155.0,0.00029174,2]
[314344592,1708207837881,-7548.56,0.00029174,2]
[314344593,1708207837890,-150.0,0.00029563,2]
[314344594,1708207837899,-879.4,0.0002985,2]
[314344595,1708207837908,-154.82,0.00029887,2]
[314344596,1708207837918,-2226.4231196,0.0003,4]
[314344597,1708207837927,-171.38825125,0.00030137,2]
[314344599,1708207837937,-4328.89,0.00030257,2]
[314344600,1708207837946,-1000.0,0.00030415,2]
[314344602,1708207837956,-154.82,0.00030646,2]
[314344604,1708207837965,-250.0,0.00030654,2]
[314344607,1708207837974,-900.0,0.00031,3]
[314344609,1708207837984,-400.73816194,0.00031049,5]
[314344611,1708207837993,-302.53924288,0.0003105,2]
[314344613,1708207838002,-2125.26,0.00031271,2]
[314344615,1708207838011,-163.83,0.00031286,2]
[314344617,1708207838020,-200.0,0.00031375,2]
[314344619,1708207838030,-150.0,0.00031416,2]
[314344621,1708207838039,-23900.0,0.00031458,2]
[314344622,1708207838048,-500.0,0.00031628,2]
[314344625,1708207838057,-1521.07,0.00031643,2]
[314344627,1708207838066,-4626.74756533,0.000318,3]
[314344628,1708207838075,-2014.09536574,0.00032,2]
[314344631,1708207838084,-205.0,0.00032011,13]
[314344633,1708207838094,-879.4,0.00032114,2]
[314344634,1708207838103,-169.79838058,0.00032833,2]
[314344636,1708207838112,-163.83,0.00032945,2]
[314344638,1708207838122,-166.22634616,0.00033,2]
[314344641,1708207838131,-950.0,0.00033,3]
[314344642,1708207838140,-855.19,0.00033117,2]
[314344643,1708207838154,-250.0,0.000332,2]
[314344644,1708207838165,-1599.7,0.0003322,2]
[314344645,1708207838174,-400.73816194,0.00033231,6]
[314344646,1708207838183,-1000.0,0.00034217,2]
[314344647,1708207838194,-879.4,0.00034378,2]
[314344648,1708207838203,-150.0,0.00034391,2]
[314344649,1708207838213,-302.53924288,0.00034475,2]
[314344650,1708207838222,-496.71,0.00034521,2]
[314344651,1708207838231,-166.97,0.00034521,2]
[314344652,1708207838241,-163.83,0.00034605,2]
[314344653,1708207838250,-855.19,0.00034761,2]
[314344654,1708207838259,-1646.43250109,0.000349,2]
[314344655,1708207838269,-1646.43250106,0.000349,2]
[314344657,1708207838279,-1646.43250106,0.000349,2]
[314344659,1708207838287,-1646.43250106,0.000349,2]
[314344661,1708207838296,-1646.43250106,0.000349,2]
[314344663,1708207838305,-1646.43250106,0.000349,2]
[314344665,1708207838315,-1646.43250106,0.000349,2]
[314344667,1708207838323,-162.0,0.00035,2]
[314344669,1708207838333,-153.06169529,0.00035057,2]
[314344671,1708207838342,-3000.0,0.00035089,2]
[314344673,1708207838351,-19248.33299721,0.0003509,2]
[314344675,1708207838362,-1646.43250106,0.00035353,2]
[314344677,1708207838371,-400.73816194,0.00035414,7]
[314344679,1708207838380,-205.0,0.00035509,19]
[314344681,1708207838389,-1157.9713507,0.000357,2]
[314344683,1708207838399,-150.0,0.0003576,2]
[314344707,1708207838596,-496.71,0.00035798,2]
[314344709,1708207838605,-246.61,0.00035894,2]
[314344711,1708207838614,-166.44,0.00035951,2]
[314344713,1708207838623,-150.45,0.00036,2]
[314344715,1708207838633,-246.61,0.00036083,2]
[314344717,1708207838643,-1000.0,0.00036237,2]
[314344719,1708207838653,-163.83,0.00036265,2]
[314344721,1708207838663,-246.61,0.00036272,2]
[314344723,1708207838674,-153.06169529,0.00036364,2]
[314344725,1708207838684,-11610.00410751,0.00036389,2]
[314344727,1708207838694,-11610.0041075,0.00036389,2]
[314344729,1708207838703,-11610.0041075,0.00036389,2]
[314344731,1708207838713,-11610.0041075,0.00036389,2]
[314344733,1708207838722,-11610.0041075,0.00036389,2]
[314344735,1708207838731,-11610.0041075,0.00036389,2]
[314344737,1708207838740,-11610.0041075,0.00036389,2]
[314344739,1708207838750,-11610.0041075,0.00036389,2]
[314344741,1708207838759,-855.19,0.00036405,2]
[314344743,1708207838768,-246.61,0.00036461,2]
[314344745,1708207838777,-152.92,0.0003652,2]
[314344747,1708207838787,-879.4,0.00036641,2]
[314344749,1708207838797,-151.021833,0.00036648,15]
[314344751,1708207838806,-246.61,0.00036649,2]
[314344753,1708207838815,-151.021833,0.00036748,16]
[314344755,1708207838824,-1070.71060103,0.00036798,2]
[314344757,1708207838834,-1070.710601,0.00036798,2]
[314344759,1708207838844,-1070.710601,0.00036798,2]
[314344761,1708207838853,-1070.710601,0.00036798,2]
[314344763,1708207838862,-1070.710601,0.00036798,2]
[314344765,1708207838871,-1070.710601,0.00036798,2]
[314344767,1708207838880,-1070.710601,0.00036798,2]
[314344769,1708207838889,-1070.710601,0.00036798,2]
[314344771,1708207838898,-166.97,0.00036823,2]
[314344773,1708207838907,-246.61,0.00036838,2]
[314344775,1708207838916,-151.021833,0.00036848,17]
[314344777,1708207838925,-1000.0,0.00036864,2]
[314344779,1708207838934,-300.0,0.000369,2]
[314344781,1708207838943,-150.0,0.000369,2]
[314344783,1708207838952,-150.0,0.000369,2]
[314344785,1708207838962,-1646.43250106,0.00036932,2]
[314344787,1708207838971,-151.021833,0.00036948,18]
[314344789,1708207838980,-246.61,0.00037027,2]
[314344791,1708207838989,-151.021833,0.00037048,30]
[314344793,1708207838999,-496.71,0.00037075,2]
[314344795,1708207839007,-151.021833,0.00037148,29]
[314344797,1708207839017,-246.61,0.00037216,2]
[314344799,1708207839026,-151.021833,0.00037248,30]
[314344801,1708207839035,-151.021833,0.00037348,29]
[314344803,1708207839045,-2234.92455175,0.000374,5]
[314344805,1708207839054,-246.61,0.00037405,2]
[314344807,1708207839063,-151.021833,0.00037448,30]
[314344809,1708207839072,-1000.0,0.00037491,2]
[314344811,1708207839081,-1000.0,0.000375,2]
[314344813,1708207839090,-1000.0,0.000375,2]
[314344815,1708207839099,-353.72,0.00037504,2]
[314344817,1708207839107,-151.021833,0.00037548,31]
[314344819,1708207839117,-246.61,0.00037594,2]
[314344821,1708207839126,-400.73816194,0.00037597,8]
[314344823,1708207839135,-151.021833,0.00037648,32]
[314344825,1708207839145,-180.0,0.00037671,2]
[314344827,1708207839155,-153.06169529,0.00037671,2]
[314344829,1708207839164,-151.021833,0.00037748,31]
[314344831,1708207839173,-246.61,0.00037783,2]
[314344833,1708207839182,-153.67516026,0.00037799,2]
[314344835,1708207839191,-169.79838058,0.00037799,2]
[314344837,1708207839200,-5000.0,0.000378,3]
[314344839,1708207839209,-298.06018373,0.000378,2]
[314344841,1708207839218,-1173.19407884,0.000378,2]
[314344843,1708207839229,-950.55031018,0.000378,2]
[314344845,1708207839238,-331.79556239,0.000378,2]
[314344847,1708207839247,-583.88936225,0.000378,2]
[314344849,1708207839257,-4389.39466431,0.000378,2]
[314344851,1708207839266,-151.021833,0.00037848,32]
[314344853,1708207839275,-151.0,0.00037872,7]
[314344855,1708207839285,-194.92961722,0.00037899,3]
[314344857,1708207839295,-272.11161324,0.000379,2]
[314344859,1708207839304,-224.00941058,0.000379,2]
[314344861,1708207839313,-1284673.87230152,0.000379,2]
[314344863,1708207839322,-622436.557137,0.000379,3]
[314344865,1708207839331,-302.53924288,0.000379,2]
[314344867,1708207839340,-17746.34655532,0.000379,2]
[314344869,1708207839349,-163.83,0.00037925,2]
[314344871,1708207839358,-166.44,0.00037929,2]
[314344874,1708207839367,-151.021833,0.00037948,31]
[314344876,1708207839376,-246.61,0.00037972,2]
[314344878,1708207839385,-150.0,0.00037999,30]
[314344880,1708207839394,-150.0,0.00037999,30]
[314344882,1708207839403,-935.85066898,0.00038,2]
[314344884,1708207839412,-1295423.6783742,0.00038,2]
[314344914,1708207839710,-124363.08377718,0.00038,2]
[314344917,1708207839736,-267.02769311,0.00038,2]
[314345042,1708207840994,-766.32116417,0.00038,2]
[314345050,1708207841053,-3593.16823841,0.00038,2]
[314345225,1708207842698,-1430.05395492,0.00038,2]
[314345227,1708207842709,-557.15348921,0.00038,2]
[314345229,1708207842721,-10559.95169104,0.00038,2]
[314345480,1708207845590,-56585.41648532,0.00038,2]
[314345507,1708207845838,-5590.25854814,0.00038,2]
[314345508,1708207845858,-289.15035342,0.00038,2]
[314345509,1708207845881,-3328.77992622,0.00038,2]
[314345511,1708207845892,-496.0,0.00038,2]
[314345513,1708207845903,-612.85068032,0.00038,2]
[314345520,1708207962620,42774.79489662,0.00033,120]
[314345542,1708209031761,-414.64754481,0.00024733,2]
[314345544,1708209031770,-1211.03521878,0.00024734,2]
[314345546,1708209031779,-472.0,0.00024737,2]
[314345548,1708209031788,-155.0,0.0002475,2]
[314345550,1708209031798,-155.0,0.00034335,4]
[314345552,1708209031807,-671.0,0.00034336,2]
[314345554,1708209031816,-2000.0,0.000356,2]
[314345556,1708209031825,-200.0,0.00035945,2]
[314345558,1708209031834,-530.0,0.00035964,2]
[314345560,1708209031843,-162.44,0.00035969,10]
[314345562,1708209031852,-206.0,0.00036008,2]
[314345564,1708209031861,-187.62,0.00036026,2]
[314345566,1708209031870,-250.0,0.0003603,2]
[314345568,1708209031880,-427.59,0.00036047,2]
[314345570,1708209031889,-1771.05,0.00036068,2]
[314345572,1708209031898,-161.62,0.00036069,2]
[314345574,1708209031907,-500.0,0.00036072,2]
[314345576,1708209031916,-250.0,0.00036075,2]
[314345578,1708209031925,-279.73,0.00036099,2]
[314345580,1708209031934,-150.0,0.00036124,2]
[314345582,1708209031943,-2000.0,0.00036135,2]
[314345584,1708209031952,-23900.0,0.00036144,2]
[314345586,1708209031961,-150.0,0.0003619,2]
[314345588,1708209031970,-2705.0,0.0003621,2]
[314345590,1708209031980,-1000.0,0.00036237,2]
[314345592,1708209031989,-154.8,0.00036238,2]
[314345594,1708209031998,-198.68,0.00036249,2]
[314345615,1708209032196,-1333.08,0.00036413,2]
[314345617,1708209032205,-213.33,0.00036413,2]
[314345619,1708209032214,-271.31605478,0.00036515,2]
[314345621,1708209032223,-44022.57530002,0.00036516,2]
[314345623,1708209032232,-671.0,0.000366,2]
[314345625,1708209032241,-154.8,0.00036691,2]
[314345627,1708209032250,-200.0,0.00036735,2]
[314345629,1708209032259,-419.0,0.00036986,2]
[314345631,1708209032269,-1855.0,0.00037,2]
[314345633,1708209032277,-154.8,0.00037144,2]
[314345635,1708209032286,-316.02,0.00037178,2]
[314345637,1708209032295,-246.66,0.00037189,2]
[314345639,1708209032304,-412.14,0.00037356,2]
[314345641,1708209032313,-349.76,0.00037411,2]
[314345643,1708209032322,-181.0,0.00037575,2]
[314345644,1708209032330,-198.68,0.00037591,2]
[314345646,1708209032339,-154.8,0.00037597,2]
[314345648,1708209032348,-207.225,0.0003769,2]
[314345651,1708209032358,-418.5507,0.0003769,2]
[314345652,1708209032367,-427.59,0.0003769,2]
[314345654,1708209032376,-200.0,0.00037696,3]
[314345656,1708209032385,-252.7592,0.000377,2]
[314345658,1708209032394,-1000.0,0.0003778,2]
[314345660,1708209032403,-2500.0,0.0003778,2]
[314345662,1708209032411,-214.1421202,0.0003779,2]
[314345664,1708209032420,-2322.0008215,0.0003779,2]
[314345666,1708209032429,-7152.7448,0.0003779,2]
[314345668,1708209032438,-210.0,0.0003779,2]
[314345670,1708209032447,-151.021833,0.00037798,32]
[314345672,1708209032456,-151.021833,0.00037798,32]
[314345674,1708209032465,-151.021833,0.00037798,31]
[314345676,1708209032477,-151.021833,0.00037798,31]
[314345678,1708209032486,-151.021833,0.00037798,30]
[314345680,1708209032496,-151.021833,0.00037798,29]
[314345682,1708209032505,-151.021833,0.00037798,29]